bitfinex/quotes_ETHUSD_20260113
["timestamp","ask_amount","ask_price","bid_price","bid_amount"]
[1768295877050,3.18977128,3137.8,3137.3,0.001]
[1768295877227,0.00280208,3137.8,3137.3,0.001]
[1768295877435,0.63765012,3137.7,3137.3,0.001]
[1768295879431,0.00280208,3137.8,3137.3,0.001]
[1768295879636,0.00280208,3137.8,3137.3,0.95073809]
[1768295880132,0.25380208,3137.8,3137.3,0.95073809]
[1768295880336,0.00280208,3137.8,3137.3,0.95073809]
[1768295881105,0.00280208,3137.8,3137.5,9.01481975]
[1768295881308,0.00280208,3137.8,3137.6,0.90466933]
[1768295881843,0.00280208,3137.8,3137.5,0.94973809]
[1768295884054,0.00280208,3137.8,3137.5,4.13695319]
[1768295885442,0.00280208,3137.8,3137.5,4.13697613]
[1768295886244,0.00280208,3137.8,3137.3,0.001]
[1768295886747,0.00280208,3137.8,3137.3,4.10565111]
[1768295886946,0.00280208,3137.8,3137.4,0.89835178]
[1768295887648,0.00280208,3137.8,3137.4,1.81557694]
[1768295888950,0.00280208,3137.8,3137.4,9.88074165]
[1768295889338,0.00280208,3137.8,3137.4,6.6934436]
[1768295889518,0.00280208,3137.8,3137.4,1.81557694]
[1768295890937,0.002,3137.5,3137.4,1.81557694]
[1768295891315,0.00280208,3137.8,3137.5,0.91722516]
[1768295894732,0.00280208,3137.8,3137.3,5.84691646]
[1768295894934,0.00280208,3137.8,3137.3,6.77545915]
[1768295896767,0.00280208,3137.8,3137.3,5.80740935]
[1768295897059,0.00280208,3137.8,3137.3,6.77545915]
[1768295897757,0.002,3138.0,3137.7,4.87786666]
[1768295897959,0.002,3138.0,3137.6,0.03187149]
[1768295898257,0.002,3138.3,3137.8,4.87786666]
[1768295898652,0.002,3138.3,3137.7,0.9680498]
[1768295898850,0.002,3138.3,3137.6,10.25834255]
[1768295899147,0.002,3138.3,3137.6,5.38047589]
[1768295899354,0.002,3138.3,3137.6,2.19336335]
[1768295899541,0.002,3138.3,3137.7,0.53805881]
[1768295900973,0.002,3138.3,3137.8,4.87786666]
[1768295901264,0.002,3138.3,3137.7,4.69313499]
[1768295901751,0.002,3138.3,3137.7,1.50610861]
[1768295902634,0.98779034,3138.3,3137.7,0.53805881]
[1768295903468,0.002,3138.0,3137.7,0.53805881]
[1768295903637,0.002,3138.0,3137.8,0.8603036]
[1768295904865,0.002,3138.0,3137.7,0.53805881]
[1768295906075,0.002,3138.0,3137.4,3.18813269]
[1768295906076,0.98579034,3137.8,3137.4,0.00080216]
[1768295906271,5.12886666,3137.9,3137.4,0.00080216]
[1768295906272,0.98579034,3137.6,3137.4,0.00080216]
[1768295907743,0.251,3137.7,3137.4,0.00080216]
[1768295907945,4.17461199,3138.0,3137.4,0.00080216]
[1768295908265,0.251,3137.8,3137.4,0.00080216]
[1768295908435,0.73811777,3138.0,3137.4,0.96885196]
[1768295908637,0.253,3138.0,3137.4,0.96885196]
[1768295909869,3.43978316,3138.0,3137.4,0.96885196]
[1768295910068,0.253,3138.0,3137.4,0.96885196]
[1768295911153,0.253,3138.0,3137.5,0.9680498]
[1768295912580,0.002,3138.0,3137.5,0.9680498]
[1768295913077,0.002,3138.0,3137.6,0.9680498]
[1768295914079,0.002,3138.0,3137.7,0.9680498]
[1768295915378,0.002,3138.0,3137.7,0.9690498]
[1768295916077,0.002,3138.0,3137.7,4.15605477]
[1768295916383,0.002,3138.0,3137.8,0.99574464]
[1768295917898,0.002,3138.3,3137.9,0.99574464]
[1768295920998,0.002,3138.3,3137.7,0.99674464]
[1768295922504,0.002,3138.3,3137.9,0.99574464]
[1768295922667,0.253,3138.6,3138.0,5.87453508]
[1768295922668,0.002,3138.6,3138.0,5.87453508]
[1768295922866,0.002,3138.6,3138.1,0.58745351]
[1768295923480,0.002,3138.6,3138.0,0.99574464]
[1768295924881,0.002,3138.6,3138.0,4.18238625]
[1768295925505,0.002,3138.6,3138.1,0.99574464]
[1768295928005,0.002,3138.3,3138.1,0.99574464]
[1768295928672,0.002,3138.3,3138.0,0.001]
[1768295928871,0.002,3138.3,3138.0,0.41936554]
[1768295932211,0.002,3138.3,3138.0,0.001]
[1768295935211,0.97841395,3138.3,3138.0,0.001]
[1768295937327,0.97641395,3138.2,3137.7,0.001]
[1768295937622,0.97841395,3138.3,3137.7,0.001]
[1768295938389,4.16486471,3138.3,3137.7,0.001]
[1768295939108,0.97841395,3138.3,3137.7,0.001]
[1768295939274,4.16487805,3138.3,3137.7,0.001]
[1768295939916,0.97641395,3138.2,3137.7,0.001]
[1768295940507,4.1629837,3138.2,3137.7,0.001]
[1768295940694,0.97641395,3138.1,3137.7,0.001]
[1768295942925,4.16315709,3138.0,3137.7,0.001]
[1768295944614,0.97641395,3138.0,3137.7,0.001]
[1768295947243,0.91459566,3137.9,3137.7,0.001]
[1768295947446,0.91459566,3137.9,3137.4,0.00080216]
[1768295947447,1.42237177,3137.9,3137.4,0.00080216]
[1768295947874,0.50777611,3137.9,3137.4,0.00080216]
[1768295948072,0.251,3138.0,3137.4,0.00080216]
[1768295948868,0.251,3138.0,3137.4,0.95679674]
[1768295950170,0.251,3138.0,3137.5,0.0318725]
[1768295950370,0.251,3138.0,3137.4,0.98867026]
[1768295952888,0.251,3138.0,3137.7,0.001]
[1768295953279,3.87297034,3138.0,3137.7,0.001]
[1768295953776,3.87497034,3138.0,3137.7,0.001]
[1768295953976,3.62397034,3138.0,3137.7,0.001]
[1768295954189,3.87497034,3138.0,3137.7,0.001]
[1768295956263,0.68822619,3138.0,3137.7,0.001]
[1768295956592,3.87497141,3138.0,3137.7,0.001]
[1768295957095,0.68822619,3138.0,3137.7,0.001]
[1768295957892,0.253,3138.0,3137.7,0.001]
[1768295958259,0.253,3138.0,3137.7,0.92700341]
[1768295958260,0.002,3138.0,3137.7,0.92700341]
[1768295960306,0.002,3138.0,3137.8,0.92600341]
[1768295960970,0.002,3138.3,3137.7,3.18800196]
[1768295960971,0.002,3138.3,3137.9,0.92600341]
[1768295961177,0.002,3138.3,3138.0,0.92600341]
[1768295962483,0.002,3138.3,3138.1,0.92600341]
[1768295962906,0.002,3138.6,3138.2,0.92600341]
[1768295964309,0.91974352,3139.1,3138.4,0.92600341]
[1768295964475,0.251,3139.0,3138.5,0.92600341]
[1768295965680,0.00280272,3139.1,3138.5,0.92600341]
[1768295965681,0.25380272,3139.1,3138.5,0.92600341]
[1768295965907,0.68971233,3139.1,3138.5,0.92600341]
[1768295966299,0.002,3138.6,3138.5,0.92600341]
[1768295966604,0.00280272,3139.1,3138.5,0.92600341]
[1768295966796,0.25380272,3139.1,3138.5,0.92600341]
[1768295967407,0.00280272,3139.1,3138.5,0.92600341]
[1768295967612,0.9169408,3139.0,3138.4,3.18629841]
[1768295967820,0.00280272,3139.1,3138.4,4.11230182]
[1768295968315,0.91974352,3139.1,3138.4,4.11230182]
[1768295969277,0.00280272,3139.1,3138.5,0.92600341]
[1768295970175,0.00280272,3139.1,3138.6,0.92600341]
[1768295970685,0.00280272,3139.1,3138.8,0.92600341]
[1768295975121,0.00280272,3139.1,3138.8,4.11192686]
[1768295975529,0.00280272,3139.1,3138.8,8.98679575]
[1768295975731,0.00280272,3139.1,3138.8,10.20408756]
[1768295977650,0.00280272,3139.1,3138.8,7.01816411]
[1768295977820,0.00280272,3139.1,3138.8,5.8008723]
[1768295978004,0.00280272,3139.1,3138.8,0.92600341]
[1768295978561,0.00280272,3139.1,3138.8,4.11190763]
[1768295981155,0.00281104,3139.3,3138.8,4.11190763]
[1768295981156,0.002,3139.6,3139.1,0.95371604]
[1768295981320,0.002,3139.6,3138.8,6.37183514]
[1768295981321,0.96900946,3139.6,3139.2,4.87486889]
[1768295981521,0.002,3139.6,3139.2,4.87486889]
[1768295982293,0.96700946,3139.5,3139.2,4.87486889]
[1768295983043,0.91090354,3139.8,3139.2,5.36235578]
[1768295983358,0.91090354,3139.8,3139.3,3.1854235]
[1768295984722,0.002,3139.9,3139.4,4.87486889]
[1768295985155,0.91290354,3139.9,3139.4,4.87486889]
[1768295985647,0.002,3139.9,3139.5,3.18522057]
[1768295986229,0.91290354,3139.9,3139.4,3.18528689]
[1768295986431,1e-08,3140.4,3139.6,4.87486889]
[1768295987166,1e-08,3140.4,3139.7,0.95371604]
[1768295987764,1e-08,3140.4,3139.8,0.95371604]
[1768295989265,1e-08,3140.4,3139.9,0.95371604]
[1768295990035,1e-08,3140.4,3140.0,0.95371604]
[1768295995254,1.14931508,3140.4,3140.0,0.95371604]
[1768295997964,6.02418397,3140.4,3140.0,0.95371604]
[1768295999888,9.20852141,3140.4,3140.0,0.95371604]
[1768296000185,4.87486889,3140.2,3139.7,0.95371604]
[1768296000389,4.87486889,3140.0,3139.4,0.25]
[1768296000571,4.87486889,3140.0,3139.4,1.20371604]
[1768296001556,8.05941908,3140.2,3139.4,4.38902545]
[1768296001760,8.05941908,3140.2,3139.5,0.95371604]
[1768296002393,0.95371604,3140.3,3139.5,0.95371604]
[1768296002559,1e-08,3140.4,3139.7,0.95371604]
[1768296002764,1e-08,3140.4,3139.9,0.95371604]
[1768296003483,0.002,3140.1,3139.9,0.95371604]
[1768296003679,0.002,3140.1,3140.0,0.03184713]
[1768296004454,0.002,3140.1,3139.9,0.95371604]
[1768296005087,0.002,3140.1,3140.0,0.03184713]
[1768296005271,0.002,3140.1,3139.9,0.95371604]
[1768296005599,0.002,3140.1,3140.0,0.03184713]
[1768296005892,0.002,3140.1,3139.9,0.95371604]
[1768296010697,0.002,3140.1,3140.0,0.03184713]
[1768296010999,0.002,3140.1,3140.0,0.94230674]
[1768296011996,0.00280248,3140.7,3140.1,0.94230674]
[1768296012354,0.00280248,3140.7,3140.2,0.94230674]
[1768296014901,0.00280248,3140.7,3140.0,5.77812334]
[1768296015564,0.002,3140.4,3140.0,5.77812334]
[1768296016392,0.002,3140.4,3140.1,0.90325445]
[1768296017004,0.002,3140.4,3139.9,5.77812334]
[1768296017278,0.002,3140.4,3140.0,0.90325445]
[1768296017785,0.002,3140.4,3139.9,0.89640076]
[1768296017978,0.002,3140.4,3139.8,0.90325445]
[1768296018180,0.00081351,3140.8,3140.4,0.90325445]
[1768296018381,3.18340075,3141.3,3140.7,4.87486889]
[1768296018587,4.09496695,3141.4,3141.1,4.55450807]
[1768296018806,0.40949669,3141.3,3140.9,4.87486889]
[1768296019106,1.32113818,3141.3,3140.9,4.87486889]
[1768296019294,1.32113818,3141.3,3140.7,4.87486889]
[1768296019502,1.32113818,3141.3,3140.6,0.90325445]
[1768296020706,4.50461509,3141.3,3140.6,0.90325445]
[1768296021088,3.5929736,3141.3,3140.6,0.90325445]
[1768296021287,3.43330759,3141.4,3140.8,0.90325445]
[1768296021510,0.25,3141.4,3140.8,0.90325445]
[1768296021815,0.25,3141.5,3140.9,5.77812334]
[1768296022213,3.18512069,3141.6,3141.0,0.90325445]
[1768296022214,0.002,3141.6,3141.0,0.90325445]
[1768296022369,0.002,3141.6,3141.2,0.90325445]
[1768296025889,0.002,3141.6,3141.1,4.87486889]
[1768296026303,0.91364149,3141.6,3141.1,4.87486889]
[1768296026500,0.002,3141.6,3141.1,4.87486889]
[1768296026700,0.002,3141.6,3141.3,4.87486889]
[1768296026899,0.91364149,3141.6,3141.1,4.87486889]
[1768296027346,0.002,3141.7,3141.4,4.87486889]
[1768296027522,0.91364149,3141.7,3141.1,5.39885306]
[1768296027693,0.91364149,3141.7,3141.1,0.52398417]
[1768296027902,0.002,3141.3,3140.9,0.032838]
[1768296028113,0.002,3141.3,3140.9,0.001]
[1768296028716,0.002,3141.3,3141.0,4.87486889]
[1768296029724,0.91364149,3141.7,3141.0,4.87486889]
[1768296029899,0.91164149,3141.6,3140.9,0.93609245]
[1768296030226,0.91164149,3141.6,3140.9,4.87586889]
[1768296030428,0.91164149,3141.6,3140.9,5.80035493]
[1768296031023,0.91164149,3141.6,3140.9,0.001]
[1768296031024,0.91164149,3141.5,3140.9,0.001]
[1768296032006,0.91164149,3141.3,3140.4,0.90325445]
[1768296032207,0.91164149,3141.5,3140.7,4.87486889]
[1768296032419,6.3662631,3141.6,3140.9,5.77812334]
[1768296032619,0.25,3141.6,3141.0,0.90325445]
[1768296034738,3.18319274,3141.5,3141.0,0.90325445]
[1768296034906,3.84501814,3141.5,3141.0,0.90325445]
[1768296035106,0.917823,3141.4,3140.9,4.87486889]
[1768296035337,3.84501814,3141.5,3140.8,0.97276385]
[1768296036767,7.02821088,3141.5,3140.6,1.00460489]
[1768296036911,0.917823,3141.4,3140.6,0.97276385]
[1768296037111,0.81960339,3141.3,3140.6,0.97276385]
[1768296037851,0.917823,3141.2,3140.4,0.97276385]
[1768296038048,0.917823,3141.2,3140.3,0.25080256]
[1768296038251,0.917823,3141.2,3140.3,0.00080256]
[1768296038435,0.917823,3141.0,3140.3,0.00080256]
[1768296038611,0.917823,3140.8,3140.3,0.00080256]
[1768296038815,0.25,3140.9,3139.7,0.001]
[1768296038816,0.917823,3140.6,3139.7,0.001]
[1768296039938,0.917823,3140.6,3139.7,0.97376385]
[1768296040145,6.36880968,3140.7,3140.1,5.84046646]
[1768296040341,3.91346939,3140.7,3140.6,0.001]
[1768296040553,3.91346939,3140.7,3140.1,0.97276385]
[1768296041531,7.09747295,3140.7,3140.1,0.97276385]
[1768296042131,3.91346939,3140.7,3140.1,0.97276385]
[1768296042545,3.18480612,3140.7,3140.1,0.97276385]
[1768296043213,0.00080256,3140.7,3140.1,0.97276385]
[1768296044456,3.18374199,3141.0,3140.3,0.97356649]
[1768296044622,3.18374199,3141.0,3140.4,0.97276385]
[1768296044822,3.93745001,3141.0,3140.4,0.97276385]
[1768296046556,3.93745001,3141.0,3140.3,0.00080264]
[1768296046557,0.917823,3140.9,3140.3,0.00080264]
[1768296047532,4.85527301,3141.0,3140.3,0.97356649]
[1768296047736,8.039015,3141.0,3140.3,0.97356649]
[1768296048931,0.917823,3140.9,3140.3,0.00080264]
[1768296049144,1.7217245,3140.8,3140.3,0.00080264]
[1768296050026,6.36748398,3141.0,3140.3,0.97356649]
[1768296050750,7.28530698,3141.0,3140.3,0.97356649]
[1768296051629,7.28530698,3141.0,3140.3,0.00080264]
[1768296052658,0.917823,3140.9,3140.3,0.00080264]
[1768296053023,0.917823,3140.9,3140.6,0.001]
[1768296053257,0.7285307,3140.8,3140.3,0.00080264]
[1768296053459,0.917823,3140.9,3140.3,0.00080264]
[1768296054270,6.36748398,3141.0,3140.3,0.97356649]
[1768296054770,3.18374199,3141.0,3140.3,0.97356649]
[1768296055338,0.002,3141.2,3140.4,1.00460692]
[1768296055537,3.18550905,3141.2,3140.4,0.97276385]
[1768296055737,3.18550905,3141.2,3140.5,0.97276385]
[1768296056375,7.2868411,3141.2,3140.5,0.97276385]
[1768296056949,4.10333205,3141.2,3140.5,0.97276385]
[1768296057863,3.43550905,3141.2,3140.5,0.97276385]
[1768296058441,6.6190181,3141.2,3140.5,0.97276385]
[1768296059370,8.29052521,3141.2,3140.5,0.97276385]
[1768296060154,0.917823,3141.1,3140.3,0.00080264]
[1768296060562,3.18369945,3141.0,3140.3,0.00080264]
[1768296060750,3.18369945,3141.0,3140.3,0.97356649]
[1768296060952,1e-08,3141.7,3141.2,0.97276385]
[1768296061138,1e-08,3141.7,3141.3,1.05589867]
[1768296061342,0.252,3142.0,3141.8,0.97276385]
[1768296061543,0.91862564,3142.3,3142.1,0.97276385]
[1768296062049,0.91862564,3142.3,3142.1,0.73065048]
[1768296062978,1.16862564,3142.3,3142.1,0.73065048]
[1768296063179,0.25080264,3142.3,3142.1,0.73065048]
[1768296066178,0.25080264,3142.3,3141.8,0.90434805]
[1768296068583,0.25080264,3142.3,3141.8,1.31308108]
[1768296068797,0.25080264,3142.3,3141.9,0.90434805]
[1768296070193,0.002,3142.5,3142.3,0.90434805]
[1768296070396,0.25,3142.4,3142.3,0.90434805]
[1768296070584,0.25,3142.4,3142.2,0.08313482]
[1768296070585,0.002,3142.5,3142.4,0.90434805]
[1768296070787,0.252,3142.5,3142.4,0.90434805]
[1768296070986,0.25,3142.5,3142.4,0.90434805]
[1768296071180,0.002,3142.8,3142.4,0.90434805]
[1768296071386,0.25,3142.7,3142.4,0.90434805]
[1768296071588,0.002,3142.8,3142.4,0.90434805]
[1768296071770,0.25,3142.7,3142.4,0.90434805]
[1768296072776,0.25,3142.7,3142.1,0.90434805]
[1768296073313,0.002,3142.9,3142.4,0.90434805]
[1768296073520,0.25,3142.8,3142.6,0.90434805]
[1768296074014,0.25,3142.8,3142.4,0.90434805]
[1768296074375,0.92269187,3144.5,3143.0,0.90434805]
[1768296074572,0.92269187,3144.7,3143.1,0.94495344]
[1768296074819,1.9603081,3144.9,3143.3,0.94495344]
[1768296075016,1.9603081,3144.9,3143.8,0.94495344]
[1768296075017,0.25,3144.2,3143.8,0.94495344]
[1768296075518,1.9603081,3144.9,3143.3,0.94495344]
[1768296075519,0.25,3144.1,3143.3,0.94495344]
[1768296075807,0.25,3144.1,3143.5,0.94495344]
[1768296075988,1.03761623,3144.9,3144.0,0.94495344]
[1768296076186,4.41341641,3144.9,3144.0,0.94495344]
[1768296076388,0.25,3144.8,3144.0,0.94495344]
[1768296076586,0.92269187,3144.7,3143.6,0.08313482]
[1768296076786,0.92269187,3144.7,3143.4,0.08313482]
[1768296077185,0.92269187,3144.7,3143.6,0.08313482]
[1768296077511,0.92269187,3144.7,3143.4,0.94495344]
[1768296077702,0.92269187,3144.6,3142.9,0.08313482]
[1768296077891,0.92269187,3144.6,3143.0,0.03181673]
[1768296078077,0.92269187,3144.4,3143.0,0.03181673]
[1768296078476,0.92269187,3144.2,3143.0,0.03181673]
[1768296078976,0.92269187,3144.2,3142.7,0.03181977]
[1768296079211,0.92269187,3144.2,3143.0,7.39139914]
[1768296079508,3.18015582,3144.5,3143.2,1.02808826]
[1768296079509,0.25,3144.1,3143.2,1.02808826]
[1768296080512,0.25,3144.1,3143.4,0.08313482]
[1768296080706,0.25,3144.1,3143.4,1.02808826]
[1768296080915,3.18022885,3144.5,3143.4,1.02808826]
[1768296081220,0.25,3144.4,3143.6,1.02808826]
[1768296081579,0.25,3144.4,3143.3,1.05990195]
[1768296081778,0.91124577,3144.4,3143.3,1.05990195]
[1768296081986,0.25,3144.4,3143.5,1.02808826]
[1768296082295,3.18208126,3144.6,3143.5,0.94495344]
[1768296082296,0.25,3144.3,3143.5,0.94495344]
[1768296082782,3.43037065,3144.3,3143.6,0.08313482]
[1768296082989,3.43037065,3144.3,3143.6,1.02808826]
[1768296083504,0.25,3144.3,3143.6,1.05989892]
[1768296083707,0.25,3144.3,3143.8,0.08313482]
[1768296083912,0.25,3144.2,3143.9,0.32640961]
[1768296084098,0.25,3144.2,3143.8,0.08313482]
[1768296084415,3.4304703,3144.2,3143.2,0.94495344]
[1768296084587,0.002,3144.6,3143.5,0.08313482]
[1768296084790,3.43015582,3144.5,3143.6,1.05989892]
[1768296085306,3.43015582,3144.5,3143.3,0.08313482]
[1768296085307,0.92269187,3144.4,3143.3,0.08313482]
[1768296085505,0.75330035,3144.3,3143.3,0.08313482]
[1768296086210,0.75330035,3144.3,3142.9,0.03181774]
[1768296086211,0.92269187,3144.2,3142.9,0.03181774]
[1768296086399,0.92269187,3144.0,3142.8,0.08313482]
[1768296086600,0.92269187,3143.8,3142.8,0.08313482]
[1768296086805,0.92269187,3143.8,3142.6,0.08313482]
[1768296087201,0.92269187,3143.8,3142.4,0.08313482]
[1768296087440,0.92269187,3143.8,3142.5,0.08313482]
[1768296087605,0.92269187,3143.6,3142.5,0.08313482]
[1768296087806,0.25,3143.5,3142.7,0.08313482]
[1768296088109,0.25,3143.4,3142.7,0.08313482]
[1768296088315,0.92269187,3143.6,3142.9,0.08313482]
[1768296088494,0.25,3143.5,3143.1,0.08313482]
[1768296088807,0.25,3143.4,3143.1,0.08313482]
[1768296089008,0.25,3143.4,3142.9,0.08313482]
[1768296089604,0.25,3143.4,3142.7,0.08313482]
[1768296089789,0.25,3143.4,3142.9,0.08313482]
[1768296089991,0.92269187,3144.1,3143.2,0.08313482]
[1768296090214,1.65105291,3144.1,3143.4,0.07550171]
[1768296090512,3.43067249,3144.0,3143.6,0.08059055]
[1768296090714,3.18045925,3144.2,3143.6,0.08059055]
[1768296090893,3.18015582,3144.5,3143.8,0.08313482]
[1768296091099,0.25,3144.4,3143.8,0.08313482]
[1768296091315,0.66103116,3144.3,3143.8,0.08313482]
[1768296091515,0.25,3144.2,3144.0,0.08313482]
[1768296092013,0.002,3144.1,3143.6,0.08313482]
[1768296092618,0.002,3144.1,3143.8,0.08313482]
[1768296094419,0.002,3144.1,3144.0,0.08313482]
[1768296094822,0.252,3144.1,3144.0,0.08313482]
[1768296095120,0.14656812,3144.1,3144.0,0.08313482]
[1768296095323,0.002,3144.6,3144.3,0.08313482]
[1768296095616,0.25,3144.5,3144.0,0.08313482]
[1768296095996,0.25,3144.5,3143.9,0.08313482]
[1768296096197,0.25,3144.4,3143.6,0.03181066]
[1768296096421,3.1803581,3144.3,3143.4,0.08313482]
[1768296096622,3.43027907,3144.4,3143.6,0.08313482]
[1768296096826,0.34302791,3144.3,3143.8,0.08313482]
[1768296096990,0.25,3144.4,3143.8,0.08313482]
[1768296096991,0.002,3144.6,3144.2,0.08313482]
[1768296097321,0.25,3144.5,3144.2,0.08174084]
[1768296097523,0.002,3144.6,3144.2,0.08174084]
[1768296097730,0.25,3144.5,3144.2,0.08174084]
[1768296099119,0.25,3144.4,3143.8,0.11494345]
[1768296099323,0.25,3144.4,3144.0,0.08313482]
[1768296100496,0.002,3144.6,3144.2,0.08313482]
[1768296100697,0.25,3144.3,3144.2,0.08313482]
[1768296101631,3.18208746,3144.6,3144.0,0.08313482]
[1768296101838,0.25,3144.5,3144.0,0.08313482]
[1768296102304,0.25,3144.5,3144.2,0.08313482]
[1768296102508,0.002,3144.6,3144.4,0.08313482]
[1768296102724,6.69022184,3147.3,3144.4,0.08313482]
[1768296102725,0.25,3145.1,3144.7,0.08313482]
[1768296102918,0.25,3145.1,3144.9,0.08313482]
[1768296103302,3.17905703,3145.6,3144.9,0.08313482]
[1768296103303,0.25,3145.2,3144.9,0.08313482]
[1768296103499,0.25,3145.2,3144.7,0.08313482]
[1768296104501,0.25,3145.2,3144.9,0.08313482]
[1768296104698,0.25,3145.2,3144.7,0.08313482]
[1768296104902,3.42946199,3145.2,3144.7,0.08313482]
[1768296105217,0.25,3145.2,3144.7,0.08313482]
[1768296105420,6.95212442,3145.2,3144.3,0.1149384]
[1768296105605,6.60898582,3145.2,3144.3,0.1149384]
[1768296105805,7.57172848,3145.2,3144.3,0.1149384]
[1768296106008,6.60898582,3145.2,3144.2,0.08313482]
[1768296106741,7.57172848,3145.2,3144.2,0.08313482]
[1768296107040,0.75717285,3145.1,3144.2,0.08313482]
[1768296107240,0.002,3145.4,3144.6,0.08313482]
[1768296107410,0.25,3145.3,3144.8,0.08313482]
[1768296107615,0.25,3145.3,3145.0,0.08313482]
[1768296108554,0.25,3145.3,3144.6,1.03145032]
[1768296108724,0.25,3145.3,3144.8,0.08313482]
[1768296109812,7.91455797,3145.3,3144.3,0.08313482]
[1768296110057,0.96274266,3145.2,3144.0,0.11494143]
[1768296110416,0.96274266,3145.2,3144.2,0.08313482]
[1768296110610,0.96274266,3145.2,3144.0,0.08313482]
[1768296110807,10.13116595,3145.3,3143.6,1.03145032]
[1768296110808,0.96274266,3145.0,3143.7,0.11494447]
[1768296111045,6.35909826,3145.1,3143.9,0.08313482]
[1768296111046,1.69492675,3144.9,3143.9,0.08313482]
[1768296111248,0.25,3144.8,3143.9,0.08313482]
[1768296111545,1.21274266,3144.8,3143.7,0.11494447]
[1768296111753,1.21274266,3144.8,3143.9,0.08313482]
[1768296112546,0.96274266,3144.7,3143.6,0.08313482]
[1768296112742,0.96274266,3144.7,3143.6,0.03181066]
[1768296113057,0.96274266,3144.7,3143.4,0.08313482]
[1768296113058,4.39279735,3144.6,3143.9,0.08313482]
[1768296113354,3.17998007,3144.7,3143.9,0.08313482]
[1768296113561,3.17985707,3144.8,3144.0,0.03180661]
[1768296113858,0.25,3144.6,3143.9,0.11494244]
[1768296114233,0.25,3144.6,3143.9,0.08313482]
[1768296114459,0.34311771,3145.3,3144.5,0.08313482]
[1768296114626,0.25,3145.2,3144.6,0.03180054]
[1768296114820,0.25,3145.2,3144.5,0.08313482]
[1768296115037,3.20017917,3146.6,3144.5,0.08313482]
[1768296115038,0.16897996,3147.4,3145.6,0.9483155]
[1768296115239,0.16897996,3147.4,3146.2,5.68280461]
[1768296115240,3.34623077,3147.4,3146.2,5.68280461]
[1768296115447,0.33462308,3147.3,3146.3,0.08313482]
[1768296115620,0.25,3147.6,3146.8,0.08313482]
[1768296115823,0.25,3147.6,3147.1,0.08313482]
[1768296116068,0.25,3147.6,3146.8,0.08313482]
[1768296116069,0.00080144,3148.0,3147.3,0.08313482]
[1768296116261,0.00080144,3148.0,3147.4,0.25099588]
[1768296116526,0.96274266,3147.9,3146.2,0.08313482]
[1768296116763,9.53079949,3148.0,3146.6,0.08313482]
[1768296116764,1.04935421,3147.8,3146.6,0.08313482]
[1768296117069,6.35384566,3147.7,3146.3,0.08313482]
[1768296117220,0.96274266,3147.6,3146.1,0.08313482]
[1768296117425,0.96274266,3147.6,3145.7,6.96425493]
[1768296117721,0.96274266,3147.6,3145.8,1.09642549]
[1768296117933,0.96274266,3147.3,3145.6,4.0]
[1768296118562,0.96274266,3146.6,3144.9,0.03179751]
[1768296118722,0.96274266,3146.2,3144.6,0.03180054]
[1768296118922,9.53622174,3145.9,3144.6,0.03180054]
[1768296119131,1.04989644,3145.8,3144.6,0.03180054]
[1768296119560,3.17874058,3145.9,3144.6,5.71460515]
[1768296119770,0.25,3145.8,3144.3,0.08313482]
[1768296120256,0.25,3145.8,3144.4,0.03180256]
[1768296120659,3.17833645,3146.3,3144.9,1.03145032]
[1768296120865,3.17833645,3146.3,3145.1,1.03145032]
[1768296121028,0.25,3146.7,3145.5,1.03145032]
[1768296121229,0.25,3146.7,3145.5,0.98010694]
[1768296121422,0.25,3146.7,3145.5,0.03179144]
[1768296122163,0.25,3146.7,3145.2,0.03179448]
[1768296122658,0.25,3146.7,3145.3,1.03145032]
[1768296122957,6.35606686,3146.6,3145.4,0.03179245]
[1768296123162,0.66060669,3146.5,3144.9,0.25]
[1768296123668,0.25,3146.4,3145.3,0.08313482]
[1768296123860,0.25,3146.4,3145.4,0.03179245]
[1768296124455,0.66060669,3146.5,3145.4,0.03179245]
[1768296124755,0.66060669,3146.5,3145.4,0.9483155]
[1768296124756,0.25,3146.5,3145.4,0.9483155]
[1768296125008,3.17823544,3146.4,3145.5,0.03179144]
[1768296125165,3.42813717,3146.5,3145.5,0.03179144]
[1768296125166,3.42815145,3146.5,3145.5,0.03179144]
[1768296125368,0.25,3146.4,3145.5,0.03179144]
[1768296125950,0.25,3146.4,3145.5,0.93780454]
[1768296126154,0.25,3146.5,3145.5,0.93780454]
[1768296126753,0.25,3146.5,3145.5,0.03046964]
[1768296126935,3.17823544,3146.4,3145.3,0.03179346]
[1768296127130,0.6606322,3146.4,3145.4,0.08313482]
[1768296127464,3.42814562,3146.5,3145.5,0.03179144]
[1768296127650,0.25,3146.5,3145.5,0.03179144]
[1768296127963,3.17783144,3146.8,3145.5,0.03179144]
[1768296128164,0.9142513,3147.7,3145.8,0.98914792]
[1768296128468,0.9142513,3147.7,3145.9,0.0317874]
[1768296128469,0.9142513,3147.5,3145.9,0.0317874]
[1768296129065,10.44623107,3147.3,3145.7,0.03178942]
[1768296129244,0.002,3146.1,3145.7,0.03178942]
[1768296129560,0.002,3146.1,3145.5,0.03178942]
[1768296129764,0.00058583,3146.4,3145.8,0.9060131]
[1768296129982,0.00058583,3146.4,3146.0,0.08313482]
[1768296130138,0.25,3147.1,3146.1,0.03178538]
[1768296130465,0.25,3147.4,3146.2,0.08313482]
[1768296130665,0.25,3147.4,3146.3,0.03178336]
[1768296130852,6.35405624,3147.6,3146.3,0.03178336]
[1768296131169,6.35445128,3147.4,3146.3,0.03178336]
[1768296131964,3.42722564,3147.4,3146.3,0.93779646]
[1768296132344,6.60445128,3147.4,3146.3,0.93779646]
[1768296132740,7.26489641,3147.4,3146.3,0.03178336]
[1768296133555,0.91044513,3147.4,3146.3,0.03178336]
[1768296133750,3.42724441,3147.4,3146.4,0.08313482]
[1768296133978,6.60448882,3147.4,3146.5,0.03178134]
[1768296134278,3.17702376,3147.6,3146.5,0.03178134]
[1768296134477,0.25,3147.3,3146.5,0.03178134]
[1768296134678,0.25,3147.4,3146.5,0.03178134]
[1768296134982,0.91040475,3147.4,3146.5,0.03178134]
[1768296135276,6.35465318,3147.3,3146.5,0.03178134]
[1768296135569,3.17732659,3147.3,3146.5,0.03178134]
[1768296135870,6.35465318,3147.3,3146.5,0.03178134]
[1768296137396,6.35465318,3147.3,3146.2,0.98914792]